[Event "44th Chess Olympiad Women 2022"]
[Site "Chennai"]
[Date "2022.08.08"]
[Round "10.39"]
[White "Junior, Ednasia"]
[Black "Li, Joy Ching"]
[Result "1/2-1/2"]
[WhiteElo "1849"]
[BlackElo "1386"]
[Annotator "NA RC"]
[PlyCount "84"]
[EventDate "2022.??.??"]
[TimeControl "60"]

1. e4 {[%emt 0:00:03]} c5 {[%emt 0:00:05]} 2. Nf3 {[%emt 0:00:05]} g6 {[%emt 0:
00:00]} 3. d4 {[%emt 0:00:07]} cxd4 {[%emt 0:00:05]} 4. Nxd4 {[%emt 0:00:04]}
Nc6 {[%emt 0:00:09]} 5. c4 {[%emt 0:00:09]} Nf6 {[%emt 0:00:07]} 6. Nc3 {
[%emt 0:00:05]} Nxd4 {[%emt 0:00:06]} 7. Qxd4 {[%emt 0:00:06]} d6 {[%emt 0:00:
00]} 8. Be2 {[%emt 0:01:22]} Bg7 {[%emt 0:00:23]} 9. Be3 {[%emt 0:00:21]} O-O {
[%emt 0:00:14]} 10. Qd2 {[%emt 0:00:17]} Be6 {[%emt 0:00:23]} 11. O-O {[%emt 0:
00:00]} Qa5 {[%emt 0:00:41]} 12. f3 {[%emt 0:01:02]} Rfc8 {[%emt 0:00:19]} 13.
b3 {[%emt 0:03:03]} a6 {[%emt 0:00:14]} 14. Rac1 {[%emt 0:02:18]} b5 {[%emt 0:
00:00]} 15. Nd5 {[%emt 0:04:41]} Qxd2 {[%emt 0:01:50]} 16. Bxd2 {[%emt 0:00:28]
} Bxd5 {[%emt 0:03:00]} 17. exd5 {[%emt 0:06:19]} Rab8 {[%emt 0:16:28]} 18.
Rfe1 {[%emt 0:09:42]} Kf8 {[%emt 0:15:29]} 19. Kf2 {[%emt 0:04:14]} Nd7 {
[%emt 0:04:09]} 20. Rc2 {[%emt 0:04:23]} Rb7 {[%emt 0:09:52]} 21. Rec1 {
[%emt 0:02:46]} Rbc7 {[%emt 0:02:02]} 22. Ke3 {[%emt 0:04:43]} Bh6+ {[%emt 0:
00:00]} 23. f4 {[%emt 0:02:14]} Nb6 {[%emt 0:01:28]} 24. Bd3 {[%emt 0:04:46]}
bxc4 {[%emt 0:04:43]} 25. bxc4 {[%emt 0:02:45]} Na4 {[%emt 0:01:30]} 26. Rb1 {
[%emt 0:03:12]} Nc5 {[%emt 0:01:36]} 27. Rb6 {[%emt 0:04:55]} Bxf4+ {[%emt 0:
00:00]} 28. Kxf4 {[%emt 0:05:22]} Nxd3+ {[%emt 0:00:11]} 29. Ke4 {[%emt 0:00:
00]} Nc5+ {[%emt 0:02:30]} 30. Kd4 {[%emt 0:02:28]} Kg7 {[%emt 0:02:14]} 31.
Bb4 {[%emt 0:03:51]} Rb7 {[%emt 0:03:11]} 32. Rxb7 {[%emt 0:06:56]} Nxb7 {
[%emt 0:00:07]} 33. Rb2 {[%emt 0:02:30]} Nc5 {[%emt 0:00:46]} 34. Ba3 {[%emt 0:
00:00]} Nd7 {[%emt 0:02:44]} 35. Rb7 {[%emt 0:01:36]} Ne5 {[%emt 0:00:27]} 36.
c5 {[%emt 0:00:54]} Kf6 {[%emt 0:12:35]} 37. cxd6 {[%emt 0:03:09]} Rc4+ {
[%emt 0:01:02]} 38. Ke3 {[%emt 0:00:14]} Rc3+ {[%emt 0:02:45]} 39. Ke2 {
[%emt 0:00:45]} exd6 {[%emt 0:03:26]} 40. Bxd6 {[%emt 0:00:36]} Rc2+ {[%emt 0:
00:00]} 41. Kf1 {[%emt 0:40:30]} Rc1+ {[%emt 0:30:55]} 42. Ke2 {[%emt 0:00:00]}
Rc2+ {[%emt 0:00:00]} 1/2-1/2

[Event "44th Chess Olympiad Women 2022"]
[Site "Chennai"]
[Date "2022.08.08"]
[Round "10.39"]
[White "Lam, Ka Yan"]
[Black "Paulo, Jemima"]
[Result "0-1"]
[WhiteElo "1223"]
[BlackElo "1850"]
[Annotator "NA RC"]
[PlyCount "70"]
[EventDate "2022.??.??"]
[TimeControl "60"]

1. e4 {[%emt 0:00:07]} c5 {[%emt 0:00:10]} 2. Nf3 {[%emt 0:00:11]} d6 {[%emt 0:
00:00]} 3. d4 {[%emt 0:00:25]} cxd4 {[%emt 0:00:14]} 4. Nxd4 {[%emt 0:00:10]}
Nf6 {[%emt 0:00:10]} 5. Nc3 {[%emt 0:00:49]} g6 {[%emt 0:00:12]} 6. Be3 {
[%emt 0:01:12]} Bg7 {[%emt 0:00:23]} 7. f3 {[%emt 0:01:24]} O-O {[%emt 0:00:09]
} 8. Qd2 {[%emt 0:00:54]} Nc6 {[%emt 0:00:08]} 9. Bc4 {[%emt 0:01:11]} Bd7 {
[%emt 0:00:19]} 10. O-O-O {[%emt 0:00:48]} Rc8 {[%emt 0:00:06]} 11. Bb3 {
[%emt 0:00:26]} Ne5 {[%emt 0:00:22]} 12. h4 {[%emt 0:01:54]} Nc4 {[%emt 0:00:
00]} 13. Bxc4 {[%emt 0:01:18]} Rxc4 {[%emt 0:00:11]} 14. g4 {[%emt 0:02:32]}
Qa5 {[%emt 0:00:08]} 15. h5 {[%emt 0:01:49]} Rfc8 {[%emt 0:00:07]} 16. hxg6 {
[%emt 0:00:48]} fxg6 {[%emt 0:00:12]} 17. Kb1 {[%emt 0:00:45]} b5 {[%emt 0:00:
00]} 18. Nb3 {[%emt 0:06:01]} Qd8 {[%emt 0:01:05]} 19. g5 {[%emt 0:03:47]} Nh5
{[%emt 0:02:40]} 20. Qd5+ {[%emt 0:05:41]} Kh8 {[%emt 0:01:50]} 21. f4 {
[%emt 0:14:57]} b4 {[%emt 0:00:14]} 22. f5 {[%emt 0:01:57]} bxc3 {[%emt 0:00:
00]} 23. fxg6 {[%emt 0:02:12]} hxg6 {[%emt 0:00:26]} 24. Qf7 {[%emt 0:01:30]}
Qe8 {[%emt 0:00:30]} 25. Qf3 {[%emt 0:16:26]} Bc6 {[%emt 0:02:14]} 26. Nd4 {
[%emt 0:06:35]} cxb2 {[%emt 0:03:10]} 27. Rdg1 {[%emt 0:12:47]} Bxd4 {[%emt 0:
00:00]} 28. Bxd4+ {[%emt 0:06:43]} Rxd4 {[%emt 0:00:09]} 29. Rxh5+ {[%emt 0:00:
00]} gxh5 {[%emt 0:00:08]} 30. g6 {[%emt 0:00:13]} Kg7 {[%emt 0:00:12]} 31.
Qxh5 {[%emt 0:00:35]} Qh8 {[%emt 0:00:18]} 32. Qf5 {[%emt 0:00:41]} Rf8 {
[%emt 0:00:12]} 33. Qe6 {[%emt 0:00:34]} Qh4 {[%emt 0:00:07]} 34. Rg4 {[%emt 0:
00:00]} Qe1+ {[%emt 0:00:30]} 35. Kxb2 {[%emt 0:00:59]} Rb4+ {[%emt 0:01:06]}
0-1

[Event "44th Chess Olympiad Women 2022"]
[Site "Chennai"]
[Date "2022.08.08"]
[Round "10.40"]
[White "Shaba, Linda Dalitso"]
[Black "Punsalan, Vyanla M"]
[Result "1/2-1/2"]
[WhiteElo "1658"]
[BlackElo "1895"]
[Annotator "NA RC"]
[PlyCount "108"]
[EventDate "2022.??.??"]
[TimeControl "60"]

1. Nf3 {[%emt 0:00:04]} d5 {[%emt 0:00:21]} 2. d4 {[%emt 0:00:14]} Nf6 {
[%emt 0:01:02]} 3. g3 {[%emt 0:00:06]} Bf5 {[%emt 0:01:47]} 4. Bg2 {[%emt 0:00:
00]} e6 {[%emt 0:00:44]} 5. O-O {[%emt 0:00:28]} h5 {[%emt 0:01:11]} 6. Bg5 {
[%emt 0:00:22]} Be7 {[%emt 0:01:08]} 7. c4 {[%emt 0:00:52]} Ne4 {[%emt 0:02:40]
} 8. Bxe7 {[%emt 0:01:13]} Qxe7 {[%emt 0:00:27]} 9. cxd5 {[%emt 0:04:25]} exd5
{[%emt 0:01:46]} 10. Nc3 {[%emt 0:01:56]} c6 {[%emt 0:03:15]} 11. h4 {[%emt 0:
00:00]} f6 {[%emt 0:05:03]} 12. Qc1 {[%emt 0:05:39]} Rg8 {[%emt 0:08:32]} 13.
Qf4 {[%emt 0:03:42]} Bh7 {[%emt 0:07:30]} 14. Rac1 {[%emt 0:06:38]} Nd7 {
[%emt 0:06:49]} 15. Nxe4 {[%emt 0:02:22]} dxe4 {[%emt 0:04:28]} 16. Nd2 {
[%emt 0:05:37]} g5 {[%emt 0:06:28]} 17. hxg5 {[%emt 0:00:47]} fxg5 {[%emt 0:00:
00]} 18. Qe3 {[%emt 0:03:22]} Nf6 {[%emt 0:06:10]} 19. Qa3 {[%emt 0:13:25]}
Qxa3 {[%emt 0:04:13]} 20. bxa3 {[%emt 0:00:06]} Rd8 {[%emt 0:01:49]} 21. e3 {
[%emt 0:00:35]} h4 {[%emt 0:10:20]} 22. Rc5 {[%emt 0:03:15]} Rd5 {[%emt 0:00:
00]} 23. Rfc1 {[%emt 0:00:13]} Kd8 {[%emt 0:07:01]} 24. R1c3 {[%emt 0:17:29]}
hxg3 {[%emt 0:04:08]} 25. fxg3 {[%emt 0:00:00]} Bf5 {[%emt 0:00:38]} 26. Rc1 {
[%emt 0:00:00]} Nd7 {[%emt 0:03:21]} 27. R5c3 {[%emt 0:00:00]} Re8 {[%emt 0:00:
00]} 28. Rf1 {[%emt 0:00:18]} Bg6 {[%emt 0:01:54]} 29. Bh3 {[%emt 0:02:01]} Rf8
{[%emt 0:02:22]} 30. Rxf8+ {[%emt 0:00:27]} Nxf8 {[%emt 0:00:05]} 31. Bg2 {
[%emt 0:00:06]} Rb5 {[%emt 0:01:24]} 32. Rb3 {[%emt 0:00:30]} Bf7 {[%emt 0:00:
00]} 33. Rxb5 {[%emt 0:00:34]} cxb5 {[%emt 0:00:02]} 34. Nxe4 {[%emt 0:01:14]}
Bxa2 {[%emt 0:01:16]} 35. Nxg5 {[%emt 0:00:40]} a5 {[%emt 0:00:23]} 36. Kf1 {
[%emt 0:03:33]} b6 {[%emt 0:01:45]} 37. Ke2 {[%emt 0:00:19]} Bc4+ {[%emt 0:00:
00]} 38. Kd2 {[%emt 0:00:14]} b4 {[%emt 0:00:29]} 39. axb4 {[%emt 0:00:17]}
axb4 {[%emt 0:00:14]} 40. Be4 {[%emt 0:02:09]} Ke7 {[%emt 0:00:45]} 41. Bd3 {
[%emt 0:31:54]} b5 {[%emt 0:30:06]} 42. Nf3 {[%emt 0:01:10]} Nd7 {[%emt 0:00:
00]} 43. g4 {[%emt 0:01:34]} b3 {[%emt 0:00:51]} 44. Bxc4 {[%emt 0:00:50]} bxc4
{[%emt 0:00:15]} 45. Kc3 {[%emt 0:03:01]} Nf6 {[%emt 0:00:31]} 46. Kxc4 {
[%emt 0:09:30]} Nxg4 {[%emt 0:00:43]} 47. e4 {[%emt 0:01:11]} Nf2 {[%emt 0:00:
00]} 48. Nd2 {[%emt 0:00:00]} b2 {[%emt 0:00:00]} 49. e5 {[%emt 0:00:00]} Ke6 {
[%emt 0:00:00]} 50. Kb3 {[%emt 0:00:00]} Ne4 {[%emt 0:00:00]} 51. Nb1 {[%emt 0:
00:00]} Kd5 {[%emt 0:00:00]} 52. Kxb2 {[%emt 0:00:00]} Kxd4 {[%emt 0:00:00]}
53. e6 {[%emt 0:00:00]} Ke5 {[%emt 0:00:00]} 54. e7 {[%emt 0:00:00]} Nd6 {
[%emt 0:00:00]} 1/2-1/2

[Event "44th Chess Olympiad Women 2022"]
[Site "Chennai"]
[Date "2022.08.08"]
[Round "10.40"]
[White "Yu, Weiyang"]
[Black "Mudodo, Refiloe Hazel"]
[Result "0-1"]
[WhiteElo "1504"]
[BlackElo "1604"]
[Annotator "NA RC"]
[PlyCount "70"]
[EventDate "2022.??.??"]
[TimeControl "60"]

1. e4 {[%emt 0:00:02]} e6 {[%emt 0:00:18]} 2. d4 {[%emt 0:00:04]} d5 {[%emt 0:
00:00]} 3. Nc3 {[%emt 0:00:05]} dxe4 {[%emt 0:00:21]} 4. Nxe4 {[%emt 0:00:06]}
Bd7 {[%emt 0:00:15]} 5. Nf3 {[%emt 0:00:06]} Bc6 {[%emt 0:00:20]} 6. Neg5 {
[%emt 0:00:08]} Bd6 {[%emt 0:05:06]} 7. Nxf7 {[%emt 0:00:26]} Kxf7 {[%emt 0:00:
00]} 8. Ng5+ {[%emt 0:00:06]} Ke7 {[%emt 0:01:49]} 9. Bc4 {[%emt 0:05:12]} Qe8
{[%emt 0:10:00]} 10. Nxe6 {[%emt 0:20:11]} Qg6 {[%emt 0:02:12]} 11. Ng5 {
[%emt 0:24:29]} Nh6 {[%emt 0:04:42]} 12. O-O {[%emt 0:08:13]} Kd8 {[%emt 0:00:
00]} 13. Bd3 {[%emt 0:12:24]} Qf6 {[%emt 0:05:27]} 14. Re1 {[%emt 0:06:12]} Kc8
{[%emt 0:04:58]} 15. Ne4 {[%emt 0:05:56]} Bxe4 {[%emt 0:02:17]} 16. Bxe4 {
[%emt 0:00:15]} c6 {[%emt 0:00:34]} 17. Bxh6 {[%emt 0:01:41]} Qxh6 {[%emt 0:00:
00]} 18. Qg4+ {[%emt 0:01:31]} Kc7 {[%emt 0:00:43]} 19. g3 {[%emt 0:01:35]} Nd7
{[%emt 0:00:52]} 20. Qd1 {[%emt 0:01:46]} Nf6 {[%emt 0:00:35]} 21. Bg2 {
[%emt 0:00:27]} Rae8 {[%emt 0:00:45]} 22. Qd3 {[%emt 0:00:45]} Ng4 {[%emt 0:00:
00]} 23. h3 {[%emt 0:01:02]} Nf6 {[%emt 0:03:23]} 24. d5 {[%emt 0:00:28]} Nxd5
{[%emt 0:04:35]} 25. Bxd5 {[%emt 0:00:27]} cxd5 {[%emt 0:00:13]} 26. Qxd5 {
[%emt 0:00:23]} Qxh3 {[%emt 0:01:08]} 27. Rad1 {[%emt 0:01:29]} Rxe1+ {[%emt 0:
00:00]} 28. Rxe1 {[%emt 0:00:04]} Qd7 {[%emt 0:01:49]} 29. Re3 {[%emt 0:02:09]}
Re8 {[%emt 0:01:34]} 30. Rb3 {[%emt 0:01:29]} Kb8 {[%emt 0:00:26]} 31. Rd3 {
[%emt 0:00:52]} Re1+ {[%emt 0:03:13]} 32. Kg2 {[%emt 0:00:15]} Re6 {[%emt 0:00:
00]} 33. Qf5 {[%emt 0:02:53]} Qc6+ {[%emt 0:00:41]} 34. Kg1 {[%emt 0:02:26]}
Re1+ {[%emt 0:00:12]} 35. Kh2 {[%emt 0:00:06]} Qh1# {[%emt 0:00:11]} 0-1

[Event "44th Chess Olympiad Women 2022"]
[Site "Chennai"]
[Date "2022.08.08"]
[Round "10.40"]
[White "Zengeni, Tatenda Melisa"]
[Black "Thurner, Anya"]
[Result "0-1"]
[WhiteElo "1553"]
[BlackElo "1619"]
[Annotator "NA RC"]
[PlyCount "52"]
[EventDate "2022.??.??"]
[TimeControl "60"]

1. d4 {[%emt 0:00:04]} d5 {[%emt 0:00:04]} 2. e3 {[%emt 0:00:30]} Nf6 {[%emt 0:
00:00]} 3. f4 {[%emt 0:00:14]} Bf5 {[%emt 0:00:10]} 4. Nf3 {[%emt 0:00:37]} c5
{[%emt 0:00:34]} 5. c3 {[%emt 0:00:17]} Qc7 {[%emt 0:00:32]} 6. Be2 {[%emt 0:
00:00]} Nc6 {[%emt 0:00:30]} 7. O-O {[%emt 0:00:51]} e6 {[%emt 0:00:12]} 8. Ne5
{[%emt 0:00:24]} Bd6 {[%emt 0:00:39]} 9. Nd2 {[%emt 0:01:07]} h5 {[%emt 0:00:
00]} 10. Ndf3 {[%emt 0:04:08]} Ne4 {[%emt 0:01:18]} 11. Nxc6 {[%emt 0:08:07]}
Qxc6 {[%emt 0:05:07]} 12. Ne5 {[%emt 0:00:34]} Bxe5 {[%emt 0:03:36]} 13. fxe5 {
[%emt 0:01:51]} O-O-O {[%emt 0:10:36]} 14. Bd2 {[%emt 0:09:48]} f6 {[%emt 0:00:
00]} 15. exf6 {[%emt 0:05:48]} gxf6 {[%emt 0:00:33]} 16. Bf3 {[%emt 0:00:21]}
Ng5 {[%emt 0:06:06]} 17. Be1 {[%emt 0:04:26]} Rdg8 {[%emt 0:02:47]} 18. dxc5 {
[%emt 0:12:16]} Nxf3+ {[%emt 0:01:52]} 19. Rxf3 {[%emt 0:02:38]} Bg4 {[%emt 0:
00:00]} 20. Kf2 {[%emt 0:01:21]} Bxf3 {[%emt 0:00:48]} 21. Qxf3 {[%emt 0:01:15]
} Qxc5 {[%emt 0:01:00]} 22. Ke2 {[%emt 0:01:48]} Qb5+ {[%emt 0:01:29]} 23. Kd1
{[%emt 0:01:25]} Qxb2 {[%emt 0:01:10]} 24. Rc1 {[%emt 0:01:42]} Rxg2 {[%emt 0:
00:00]} 25. c4 {[%emt 0:01:15]} d4 {[%emt 0:03:25]} 26. Qf1 {[%emt 0:03:55]}
dxe3 {[%emt 0:01:46]} 0-1

[Event "44th Chess Olympiad Women 2022"]
[Site "Chennai"]
[Date "2022.08.08"]
[Round "10.40"]
[White "Zhang, Jasmine Haomo"]
[Black "Charinda, Kudzanayi"]
[Result "0-1"]
[WhiteElo "1972"]
[BlackElo "1719"]
[Annotator "NA RC"]
[PlyCount "76"]
[EventDate "2022.??.??"]
[TimeControl "60"]

1. d4 {[%emt 0:00:04]} Nf6 {[%emt 0:00:25]} 2. c4 {[%emt 0:00:15]} e6 {[%emt 0:
00:00]} 3. Nc3 {[%emt 0:00:05]} b6 {[%emt 0:01:00]} 4. e4 {[%emt 0:00:27]} Bb4
{[%emt 0:00:32]} 5. f3 {[%emt 0:00:47]} Bb7 {[%emt 0:00:39]} 6. Nge2 {[%emt 0:
00:00]} O-O {[%emt 0:00:18]} 7. a3 {[%emt 0:00:21]} Be7 {[%emt 0:01:49]} 8. Be3
{[%emt 0:01:09]} d6 {[%emt 0:00:42]} 9. h4 {[%emt 0:00:57]} Nbd7 {[%emt 0:00:
00]} 10. h5 {[%emt 0:05:44]} c5 {[%emt 0:01:10]} 11. d5 {[%emt 0:04:27]} exd5 {
[%emt 0:00:38]} 12. cxd5 {[%emt 0:00:29]} Ne5 {[%emt 0:00:32]} 13. Ng3 {
[%emt 0:00:31]} Bc8 {[%emt 0:01:22]} 14. Qd2 {[%emt 0:02:32]} a6 {[%emt 0:00:
00]} 15. a4 {[%emt 0:00:09]} Ne8 {[%emt 0:01:47]} 16. Kd1 {[%emt 0:02:04]} f5 {
[%emt 0:01:47]} 17. Nxf5 {[%emt 0:02:54]} Bxf5 {[%emt 0:01:15]} 18. exf5 {
[%emt 0:00:05]} Rxf5 {[%emt 0:00:37]} 19. Bd3 {[%emt 0:00:44]} Nxd3 {[%emt 0:
00:00]} 20. Qxd3 {[%emt 0:00:16]} Qd7 {[%emt 0:01:05]} 21. Kc2 {[%emt 0:04:43]}
Bf6 {[%emt 0:03:44]} 22. f4 {[%emt 0:01:16]} Bxc3 {[%emt 0:02:49]} 23. bxc3 {
[%emt 0:01:17]} Nf6 {[%emt 0:01:55]} 24. c4 {[%emt 0:00:18]} Rxh5 {[%emt 0:00:
00]} 25. Rxh5 {[%emt 0:01:04]} Nxh5 {[%emt 0:00:08]} 26. Bd2 {[%emt 0:03:10]}
Qg4 {[%emt 0:02:22]} 27. Qe4 {[%emt 0:03:26]} Ng3 {[%emt 0:03:20]} 28. Qf3 {
[%emt 0:08:14]} Qg6+ {[%emt 0:01:35]} 29. Qd3 {[%emt 0:08:56]} Nf5 {[%emt 0:00:
00]} 30. Rb1 {[%emt 0:02:29]} b5 {[%emt 0:03:21]} 31. Kb2 {[%emt 0:07:41]} bxc4
{[%emt 0:01:51]} 32. Qc2 {[%emt 0:00:39]} Qxg2 {[%emt 0:04:28]} 33. Ka3 {
[%emt 0:01:25]} Qxd5 {[%emt 0:01:36]} 34. Bc3 {[%emt 0:00:26]} Nd4 {[%emt 0:00:
00]} 35. Qd2 {[%emt 0:00:59]} Qe4 {[%emt 0:03:55]} 36. Rb6 {[%emt 0:03:05]} d5
{[%emt 0:03:37]} 37. Rb7 {[%emt 0:01:15]} Nc2+ {[%emt 0:01:08]} 38. Kb2 {
[%emt 0:00:36]} d4 {[%emt 0:00:23]} 0-1

[Event "44th Chess Olympiad Women 2022"]
[Site "Chennai"]
[Date "2022.08.08"]
[Round "10.41"]
[White "Diaz Cesar, Wilsaida Pieranlly"]
[Black "Ranasinghe, S D.."]
[Result "1-0"]
[WhiteElo "1834"]
[BlackElo "1687"]
[Annotator "NA RC"]
[PlyCount "57"]
[EventDate "2022.??.??"]
[TimeControl "60"]

1. Nf3 {[%emt 0:00:05]} Nf6 {[%emt 0:00:05]} 2. e3 {[%emt 0:00:13]} e6 {
[%emt 0:00:34]} 3. c4 {[%emt 0:00:30]} d5 {[%emt 0:00:08]} 4. b3 {[%emt 0:00:
00]} Be7 {[%emt 0:00:16]} 5. Bb2 {[%emt 0:00:09]} O-O {[%emt 0:00:11]} 6. Nc3 {
[%emt 0:00:41]} c5 {[%emt 0:00:33]} 7. cxd5 {[%emt 0:00:29]} Nxd5 {[%emt 0:00:
00]} 8. Qc2 {[%emt 0:01:08]} Nb4 {[%emt 0:00:48]} 9. Qb1 {[%emt 0:00:11]} Bf6 {
[%emt 0:00:58]} 10. a3 {[%emt 0:03:27]} N4c6 {[%emt 0:00:33]} 11. h4 {[%emt 0:
00:00]} Ne5 {[%emt 0:02:21]} 12. Ng5 {[%emt 0:02:51]} Bxg5 {[%emt 0:00:22]} 13.
hxg5 {[%emt 0:00:14]} Ng6 {[%emt 0:00:08]} 14. Ne4 {[%emt 0:04:33]} Nd7 {
[%emt 0:02:14]} 15. Qd1 {[%emt 0:01:51]} f5 {[%emt 0:03:28]} 16. Qh5 {[%emt 0:
00:00]} Kf7 {[%emt 0:00:27]} 17. Qxh7 {[%emt 0:01:20]} Nde5 {[%emt 0:01:19]}
18. Bxe5 {[%emt 0:08:32]} Nxe5 {[%emt 0:00:22]} 19. g6+ {[%emt 0:10:33]} Nxg6 {
[%emt 0:07:25]} 20. Rh6 {[%emt 0:00:11]} Ne5 {[%emt 0:00:47]} 21. Rf6+ {
[%emt 0:00:27]} Ke8 {[%emt 0:00:40]} 22. Qxg7 {[%emt 0:01:26]} Nf7 {[%emt 0:00:
00]} 23. Ng5 {[%emt 0:01:15]} Qe7 {[%emt 0:00:09]} 24. Nh7 {[%emt 0:00:41]} Bd7
{[%emt 0:00:45]} 25. Rc1 {[%emt 0:04:44]} b6 {[%emt 0:00:40]} 26. Bc4 {[%emt 0:
00:00]} b5 {[%emt 0:01:35]} 27. Bxe6 {[%emt 0:00:23]} Ne5 {[%emt 0:00:44]} 28.
Rxf8+ {[%emt 0:00:11]} Qxf8 {[%emt 0:00:10]} 29. Qxf8# {[%emt 0:00:23]} 1-0

[Event "44th Chess Olympiad Women 2022"]
[Site "Chennai"]
[Date "2022.08.08"]
[Round "10.41"]
[White "Gamage, Desandhi Dhihansa"]
[Black "Munoz Santana, Doribel"]
[Result "1-0"]
[WhiteElo "1561"]
[BlackElo "1851"]
[Annotator "NA RC"]
[PlyCount "77"]
[EventDate "2022.??.??"]
[TimeControl "60"]

1. e4 {[%emt 0:00:03]} d5 {[%emt 0:00:07]} 2. exd5 {[%emt 0:00:03]} Qxd5 {
[%emt 0:00:02]} 3. Nc3 {[%emt 0:00:09]} Qd8 {[%emt 0:00:03]} 4. d4 {[%emt 0:00:
00]} Nf6 {[%emt 0:00:06]} 5. Nf3 {[%emt 0:00:04]} Bg4 {[%emt 0:00:12]} 6. h3 {
[%emt 0:00:05]} Bxf3 {[%emt 0:00:07]} 7. Qxf3 {[%emt 0:00:16]} c6 {[%emt 0:00:
00]} 8. Be3 {[%emt 0:01:15]} e6 {[%emt 0:00:21]} 9. Bd3 {[%emt 0:00:45]} Be7 {
[%emt 0:00:09]} 10. Ne2 {[%emt 0:03:19]} Nd5 {[%emt 0:04:52]} 11. Bd2 {[%emt 0:
00:00]} Nd7 {[%emt 0:08:56]} 12. c4 {[%emt 0:05:59]} Nb4 {[%emt 0:01:27]} 13.
Bb1 {[%emt 0:01:31]} Nf6 {[%emt 0:00:57]} 14. a3 {[%emt 0:01:37]} Na6 {[%emt 0:
00:00]} 15. O-O {[%emt 0:00:54]} O-O {[%emt 0:03:08]} 16. Bc3 {[%emt 0:02:23]}
Nc7 {[%emt 0:00:19]} 17. Qd3 {[%emt 0:05:08]} g6 {[%emt 0:06:17]} 18. Bc2 {
[%emt 0:02:25]} Nce8 {[%emt 0:05:07]} 19. b4 {[%emt 0:09:17]} Qc7 {[%emt 0:00:
00]} 20. Qf3 {[%emt 0:02:39]} Nh5 {[%emt 0:08:26]} 21. a4 {[%emt 0:06:41]} Bg5
{[%emt 0:08:27]} 22. Rab1 {[%emt 0:03:58]} Bh6 {[%emt 0:07:39]} 23. b5 {
[%emt 0:08:21]} f5 {[%emt 0:04:30]} 24. Bb3 {[%emt 0:08:15]} Nhf6 {[%emt 0:00:
00]} 25. bxc6 {[%emt 0:05:40]} bxc6 {[%emt 0:00:08]} 26. d5 {[%emt 0:03:21]} c5
{[%emt 0:14:21]} 27. dxe6 {[%emt 0:05:30]} Ne4 {[%emt 0:03:35]} 28. Ng3 {
[%emt 0:02:01]} N8f6 {[%emt 0:00:27]} 29. Bxf6 {[%emt 0:03:03]} Nxf6 {[%emt 0:
00:00]} 30. Rfe1 {[%emt 0:01:48]} Rfe8 {[%emt 0:01:31]} 31. Re2 {[%emt 0:02:41]
} Rad8 {[%emt 0:01:40]} 32. Rbe1 {[%emt 0:04:46]} Rd6 {[%emt 0:01:32]} 33. Bc2
{[%emt 0:01:39]} Bg7 {[%emt 0:02:00]} 34. Bxf5 {[%emt 0:04:38]} gxf5 {[%emt 0:
00:00]} 35. Nxf5 {[%emt 0:00:04]} Rb6 {[%emt 0:00:41]} 36. e7 {[%emt 0:01:01]}
Qb8 {[%emt 0:00:55]} 37. Nxg7 {[%emt 0:01:47]} Kxg7 {[%emt 0:00:16]} 38. Re6 {
[%emt 0:00:12]} Qc7 {[%emt 0:00:52]} 39. Qxf6+ {[%emt 0:00:09]} 1-0

[Event "44th Chess Olympiad Women 2022"]
[Site "Chennai"]
[Date "2022.08.08"]
[Round "10.41"]
[White "Gonzalez Peguero, Mary Loly"]
[Black "Abeysinghe, H M H Janandani"]
[Result "1/2-1/2"]
[WhiteElo "1666"]
[BlackElo "1516"]
[Annotator "NA RC"]
[PlyCount "62"]
[EventDate "2022.??.??"]
[TimeControl "60"]

1. Nf3 {[%emt 0:00:03]} c5 {[%emt 0:00:32]} 2. d3 {[%emt 0:00:07]} g6 {[%emt 0:
00:00]} 3. g3 {[%emt 0:00:11]} Bg7 {[%emt 0:00:15]} 4. Bg2 {[%emt 0:00:14]} Nc6
{[%emt 0:00:19]} 5. c3 {[%emt 0:00:26]} e6 {[%emt 0:02:00]} 6. e4 {[%emt 0:00:
00]} Nge7 {[%emt 0:02:32]} 7. O-O {[%emt 0:03:28]} O-O {[%emt 0:01:48]} 8. Be3
b6 {[%emt 0:00:00]} 9. Nbd2 {[%emt 0:03:49]} d5 {[%emt 0:00:00]} 10. d4 {
[%emt 0:06:49]} Ba6 {[%emt 0:03:34]} 11. Re1 {[%emt 0:00:35]} cxd4 {[%emt 0:00:
00]} 12. cxd4 {[%emt 0:00:08]} Rc8 {[%emt 0:01:49]} 13. Qa4 {[%emt 0:03:02]}
Bb7 {[%emt 0:00:19]} 14. e5 {[%emt 0:01:40]} Qe8 {[%emt 0:02:52]} 15. Rac1 {
[%emt 0:05:11]} a6 {[%emt 0:04:30]} 16. Qb3 {[%emt 0:02:01]} Qd8 {[%emt 0:00:
00]} 17. a3 {[%emt 0:01:35]} Na5 {[%emt 0:05:35]} 18. Qd3 {[%emt 0:02:00]} Qd7
{[%emt 0:01:55]} 19. b4 {[%emt 0:02:05]} Nac6 {[%emt 0:01:17]} 20. h4 {[%emt 0:
00:00]} Nf5 {[%emt 0:02:20]} 21. Bg5 {[%emt 0:00:29]} Na7 {[%emt 0:05:37]} 22.
Nf1 {[%emt 0:06:24]} Rxc1 {[%emt 0:01:13]} 23. Rxc1 {[%emt 0:00:00]} Rc8 {
[%emt 0:00:48]} 24. Rxc8+ {[%emt 0:00:15]} Bxc8 {[%emt 0:00:55]} 25. Qd2 {
[%emt 0:04:36]} Bf8 {[%emt 0:02:10]} 26. g4 {[%emt 0:02:02]} Ne7 {[%emt 0:00:
00]} 27. Bh6 {[%emt 0:01:45]} Qe8 {[%emt 0:01:12]} 28. Bg5 {[%emt 0:01:00]} Qa4
{[%emt 0:02:59]} 29. Bh6 {[%emt 0:04:01]} Qe8 {[%emt 0:00:49]} 30. Bg5 {
[%emt 0:02:04]} Qa4 {[%emt 0:00:59]} 31. Bh6 {[%emt 0:00:28]} Qe8 {[%emt 0:00:
00]} 1/2-1/2

[Event "44th Chess Olympiad Women 2022"]
[Site "Chennai"]
[Date "2022.08.08"]
[Round "10.41"]
[White "Wickramasinghe, Minethma Lasandi"]
[Black "Rosario Almanzar, Raydily"]
[Result "1-0"]
[WhiteElo "1541"]
[BlackElo "1882"]
[Annotator "NA RC"]
[PlyCount "72"]
[EventDate "2022.??.??"]
[TimeControl "60"]

1. e4 {[%emt 0:00:07]} c5 {[%emt 0:00:56]} 2. Nf3 {[%emt 0:00:17]} e6 {[%emt 0:
00:00]} 3. d4 {[%emt 0:00:16]} cxd4 {[%emt 0:00:04]} 4. Nxd4 {[%emt 0:00:08]}
a6 {[%emt 0:00:03]} 5. c4 {[%emt 0:00:56]} Nf6 {[%emt 0:00:17]} 6. Nc3 {
[%emt 0:00:08]} Qc7 {[%emt 0:00:22]} 7. a3 {[%emt 0:00:58]} b6 {[%emt 0:01:01]}
8. Be3 {[%emt 0:01:45]} Bb7 {[%emt 0:03:08]} 9. f3 {[%emt 0:00:51]} Be7 {
[%emt 0:00:29]} 10. Be2 {[%emt 0:00:58]} d6 {[%emt 0:00:45]} 11. O-O {[%emt 0:
00:00]} Nbd7 {[%emt 0:00:16]} 12. Rc1 {[%emt 0:05:06]} O-O {[%emt 0:01:02]} 13.
b4 {[%emt 0:01:10]} Rac8 {[%emt 0:00:19]} 14. Qd2 {[%emt 0:00:55]} Qb8 {
[%emt 0:00:06]} 15. Kh1 {[%emt 0:00:04]} h5 {[%emt 0:09:42]} 16. Bf2 {[%emt 0:
00:00]} Ne5 {[%emt 0:17:01]} 17. Na4 {[%emt 0:10:23]} Bd8 {[%emt 0:05:45]} 18.
Rfd1 {[%emt 0:06:08]} d5 {[%emt 0:10:21]} 19. exd5 {[%emt 0:11:54]} exd5 {
[%emt 0:01:11]} 20. c5 {[%emt 0:10:46]} b5 {[%emt 0:05:11]} 21. Nc3 {[%emt 0:
00:00]} Bc7 {[%emt 0:09:02]} 22. Nf5 {[%emt 0:05:32]} Ng6 {[%emt 0:00:34]} 23.
Bg3 {[%emt 0:07:08]} Bxg3 {[%emt 0:02:52]} 24. hxg3 {[%emt 0:02:32]} Rcd8 {
[%emt 0:03:08]} 25. Bd3 {[%emt 0:04:54]} Bc8 {[%emt 0:07:40]} 26. Nd6 {[%emt 0:
00:00]} Ne7 {[%emt 0:05:14]} 27. Bb1 {[%emt 0:05:27]} Be6 {[%emt 0:03:32]} 28.
Qg5 {[%emt 0:07:43]} Nc8 {[%emt 0:01:51]} 29. Nxc8 {[%emt 0:02:02]} Qxc8 {
[%emt 0:00:30]} 30. Ne2 {[%emt 0:00:52]} Rfe8 {[%emt 0:02:23]} 31. Nf4 {
[%emt 0:01:31]} Qc7 {[%emt 0:01:24]} 32. Rd4 {[%emt 0:01:33]} a5 {[%emt 0:00:
00]} 33. Bd3 {[%emt 0:00:51]} Rb8 {[%emt 0:00:39]} 34. Kh2 {[%emt 0:00:31]} Kf8
{[%emt 0:01:48]} 35. Nxh5 {[%emt 0:00:34]} Nxh5 {[%emt 0:00:19]} 36. Qxh5 {
[%emt 0:00:01]} Ke7 {[%emt 0:00:00]} 1-0